bitfinex/quotes_SOLUSD_20260211
["timestamp","ask_amount","ask_price","bid_price","bid_amount"]
[1770822168257,19.94606652,80.16,80.137,12.47849286]
[1770822168453,19.94606652,80.16,80.136,41.34]
[1770822168667,19.94606652,80.16,79.893,36.28]
[1770822168668,19.94606652,80.15,80.119,0.85221105]
[1770822168850,19.94606652,80.16,80.121,0.85221105]
[1770822169048,19.94606652,80.17,80.131,0.85221105]
[1770822169569,19.94606652,80.17,80.133,0.85221105]
[1770822169951,19.94606652,80.16,80.133,0.85221105]
[1770822170158,19.94606652,80.17,80.133,0.85221105]
[1770822170469,19.94606652,80.16,80.121,0.8269033]
[1770822170671,19.94606652,80.14,80.107,43.69156253]
[1770822170965,19.94606652,80.14,80.111,0.8269033]
[1770822172049,19.94606652,80.15,80.111,0.8269033]
[1770822172264,19.94606652,80.15,80.113,0.8269033]
[1770822172578,19.94606652,80.14,80.113,0.8269033]
[1770822172778,19.94606652,80.15,80.121,0.8269033]
[1770822172957,12.83259498,80.15,80.121,0.8269033]
[1770822173158,12.83259498,80.14,80.114,12.48221284]
[1770822173353,12.83259498,80.12,80.081,0.8269033]
[1770822173572,12.83259498,80.13,80.1,12.83259498]
[1770822173772,12.83259498,80.16,80.12,13.65949828]
[1770822173979,12.83259498,80.17,80.13,12.83259498]
[1770822174173,12.47264235,80.176,80.14,12.83259498]
[1770822174560,12.83259498,80.16,80.121,41.3]
[1770822174875,12.83259498,80.17,80.13,12.83259498]
[1770822175073,12.83259498,80.16,80.122,12.48096652]
[1770822175273,12.83259498,80.15,80.12,0.8269033]
[1770822175455,12.83259498,80.15,80.121,12.4811223]
[1770822175865,12.83259498,80.14,80.117,12.48171675]
[1770822176074,12.83259498,80.14,80.117,53.78171675]
[1770822176980,12.83259498,80.15,80.117,53.78171675]
[1770822177158,12.83259498,80.14,80.117,53.78171675]
[1770822177364,12.83259498,80.14,80.117,12.48171675]
[1770822177862,12.83259498,80.15,80.12,13.65949828]
[1770822178399,49.86834879,80.212,80.141,0.8269033]
[1770822178677,12.83259498,80.17,80.141,42.1469033]
[1770822178883,12.83259498,80.15,80.111,0.8269033]
[1770822179060,12.83259498,80.14,80.113,31.20577354]
[1770822179260,12.83259498,80.15,80.114,0.8269033]
[1770822179566,43.65728781,80.17,80.113,31.20577354]
[1770822179567,12.83259498,80.16,80.121,0.8269033]
[1770822179768,12.83259498,80.16,80.123,0.8269033]
[1770822180266,12.83259498,80.15,80.123,0.8269033]
[1770822180467,12.83259498,80.14,80.124,41.34]
[1770822180684,12.83259498,80.13,80.124,41.34]
[1770822180883,12.83259498,80.15,80.125,12.48049921]
[1770822181062,12.83259498,80.14,80.124,41.34]
[1770822181258,12.83259498,80.13,80.1,12.4843945]
[1770822181464,12.83259498,80.12,80.1,12.4843945]
[1770822181784,43.66706147,80.152,80.08,0.1]
[1770822181785,12.83259498,80.11,80.08,0.1]
[1770822181984,12.83259498,80.1,80.08,0.1]
[1770822182279,12.83259498,80.09,80.06,0.1]
[1770822182464,12.83259498,80.08,80.06,0.1]
[1770822182861,12.83259498,80.09,80.063,12.49016399]
[1770822183661,12.83259498,80.08,80.06,0.1]
[1770822183883,12.83259498,80.07,80.06,0.1]
[1770822184091,12.83259498,80.08,80.048,0.8269033]
[1770822184297,12.83259498,80.06,80.047,12.492549]
[1770822184461,12.83259498,80.06,80.022,12.49656344]
[1770822184662,12.83259498,80.06,80.023,0.8269033]
[1770822184859,12.83259498,80.06,80.032,0.8269033]
[1770822185061,36.06,80.08,80.041,0.8269033]
[1770822185062,48.89259498,80.08,80.041,0.8269033]
[1770822185285,12.83259498,80.07,80.041,0.8269033]
[1770822185483,12.83259498,80.05,80.028,41.38]
[1770822185783,12.83259498,80.06,80.031,0.8269033]
[1770822186080,12.83259498,80.05,80.029,12.49547039]
[1770822186466,12.83259498,80.06,80.029,12.49547039]
[1770822186668,12.83259498,80.07,80.031,0.8269033]
[1770822186868,12.83259498,80.05,80.029,41.4]
[1770822187084,12.48920352,80.07,80.03,12.49531425]
[1770822187085,12.83259498,80.06,80.03,12.49531425]
[1770822187290,12.83259498,80.06,80.031,0.8269033]
[1770822187484,12.83259498,80.05,80.029,41.4]
[1770822187669,12.83259498,80.05,80.03,12.49531425]
[1770822187867,12.83259498,80.06,80.03,12.49531425]
[1770822188084,12.83259498,80.07,80.031,0.8269033]
[1770822188384,12.83259498,80.06,80.031,0.8269033]
[1770822188768,12.83259498,80.04,80.02,0.1]
[1770822189198,49.94492628,80.089,80.02,0.1]
[1770822189199,12.4848621,80.097,80.02,0.1]
[1770822189367,12.83259498,80.09,80.05,12.83259498]
[1770822189685,12.83259498,80.12,80.08,12.83259498]
[1770822189985,12.83259498,80.12,80.09,12.83259498]
[1770822190189,12.83259498,80.1,80.008,306.21937801]
[1770822190367,12.83259498,80.11,80.07,12.83259498]
[1770822190567,12.83259498,80.11,80.08,12.83259498]
[1770822190784,31.19385106,80.144,80.07,41.44]
[1770822190785,12.83259498,80.1,80.07,41.44]
[1770822190973,12.85034512,80.1,80.071,53.92891608]
[1770822191169,12.85034512,80.1,80.071,85.15120629]
[1770822191373,12.85034512,80.1,80.071,43.71120629]
[1770822191575,12.85034512,80.09,80.071,12.48891608]
[1770822191779,12.85034512,80.1,80.071,12.48891608]
[1770822191984,12.85034512,80.11,80.081,0.8269033]
[1770822192186,12.85034512,80.1,80.071,12.48891608]
[1770822192392,12.85034512,80.12,80.081,0.8269033]
[1770822192591,12.48043923,80.126,80.08,41.46]
[1770822192592,12.85034512,80.1,80.08,41.46]
[1770822192891,12.85034512,80.1,80.071,12.48891608]
[1770822193195,12.85034512,80.09,80.066,12.48955082]
[1770822193368,12.85034512,80.1,80.069,0.8269033]
[1770822193571,12.85034512,80.09,80.066,12.48955082]
[1770822193794,12.85034512,80.09,80.059,12.49067221]
[1770822193966,12.85034512,80.07,80.047,12.49252702]
[1770822194287,12.85034512,80.06,80.021,43.7381734]
[1770822194483,12.85034512,80.06,80.025,0.8269033]
[1770822194873,12.85034512,80.06,80.031,0.8269033]
[1770822195068,12.85034512,80.06,80.032,12.49500199]
[1770822195271,12.85034512,80.11,80.051,0.8269033]
[1770822195476,12.85034512,80.11,80.071,0.8269033]
[1770822195678,12.85034512,80.09,80.057,0.8269033]
[1770822195898,12.85034512,80.1,80.061,0.8269033]
[1770822196093,12.85034512,80.11,80.071,0.8269033]
[1770822196299,12.85034512,80.11,80.081,0.8269033]
[1770822197191,43.6752062,80.137,80.07,12.48907206]
[1770822197192,12.85034512,80.1,80.07,12.48907206]
[1770822197401,12.85034512,80.1,80.071,41.48]
[1770822197594,12.85034512,80.09,80.071,41.48]
[1770822197995,12.85034512,80.08,80.057,0.8269033]
[1770822198175,12.85034512,80.08,80.05,44.54957661]
[1770822198492,12.85034512,80.09,80.051,0.8269033]
[1770822198799,12.85034512,80.08,80.051,0.8269033]
[1770822198983,20.04955359,80.06,80.038,12.49403692]
[1770822199377,20.04955359,80.05,80.028,12.49562653]
[1770822199578,20.04955359,80.05,80.021,12.49664368]
[1770822199772,20.04955359,80.03,80.02,0.1]
[1770822200388,49.9372423,80.101,80.001,0.8269033]
[1770822200588,20.04955359,80.05,80.021,0.8269033]
[1770822200798,5.36086188,80.083,80.003,0.8269033]
[1770822200799,20.04955359,80.04,80.003,0.8269033]
[1770822201098,20.04955359,80.05,80.021,0.8269033]
[1770822201499,35.9,80.08,80.015,41.52]
[1770822201500,20.04955359,80.04,80.015,41.52]
[1770822201697,49.95373726,80.075,80.006,0.8269033]
[1770822201698,20.04955359,80.03,80.008,12.49872845]
[1770822201900,20.04955359,80.04,80.008,12.49872845]
[1770822202279,20.04955359,80.03,80.008,12.49872845]
[1770822202479,20.04955359,80.04,80.008,44.57250706]
[1770822203001,20.04955359,80.04,80.01,20.04955359]
[1770822203296,20.04955359,80.03,80.009,12.4985939]
[1770822203499,20.04955359,80.04,80.009,12.4985939]
[1770822203705,20.04955359,80.05,80.01,20.04955359]
[1770822203885,5.36086188,80.089,80.009,43.74507867]
[1770822203886,20.04955359,80.07,80.03,20.04955359]
[1770822204203,20.04955359,80.11,80.061,0.8269033]
[1770822204403,20.04955359,80.08,80.05,0.8269033]
[1770822204588,20.04955359,80.09,80.051,0.8269033]
[1770822204777,20.04955359,80.1,80.061,0.8269033]
[1770822205201,20.04955359,80.11,80.071,0.8269033]
[1770822205505,43.6779314,80.132,80.022,4.61729252]
[1770822205506,20.04955359,80.13,80.091,0.8269033]
[1770822205808,20.04955359,80.13,80.072,62.44380057]
[1770822205809,20.04955359,80.17,80.121,0.8269033]
[1770822205994,20.04955359,80.17,80.13,20.04955359]
[1770822206200,20.04955359,80.15,80.13,0.8269033]
[1770822206506,20.04955359,80.16,80.131,0.8269033]
[1770822206695,20.04955359,80.18,80.141,0.8269033]
[1770822206903,35.86,80.23,80.16,0.8269033]
[1770822207117,99.65618614,80.276,80.181,0.8269033]
[1770822207404,99.65618614,80.276,80.161,41.52]
[1770822207405,20.04955359,80.24,80.201,0.8269033]
[1770822207587,20.04955359,80.24,80.2,20.04955359]
[1770822207781,20.04955359,80.25,80.211,0.8269033]
[1770822208298,20.04955359,80.25,80.192,93.52553869]
[1770822208299,20.04955359,80.28,80.24,0.8269033]
[1770822208507,143.18263878,80.317,80.213,0.8269033]
[1770822208508,20.04955359,80.25,80.213,0.8269033]
[1770822208696,20.04955359,80.24,80.2,20.87645689]
[1770822208893,20.04955359,80.22,80.185,0.8269033]
[1770822209087,33.58,80.245,80.2,20.04955359]
[1770822209288,6.50238893,80.291,80.192,0.8269033]
[1770822209289,20.04955359,80.23,80.192,0.8269033]
[1770822209487,20.04955359,80.23,80.175,31.18155389]
[1770822209488,20.04955359,80.21,80.181,0.8269033]
[1770822209825,12.46028284,80.255,80.173,41.48]
[1770822209826,20.04955359,80.24,80.191,0.8269033]
[1770822210113,12.45516141,80.288,80.211,0.8269033]
[1770822210286,20.04955359,80.26,80.221,0.8269033]
[1770822210483,20.04955359,80.24,80.208,0.8269033]
[1770822210691,20.04955359,80.23,80.191,0.8269033]
[1770822210907,20.04955359,80.22,80.191,0.8269033]
[1770822211089,20.04955359,80.21,80.176,0.8269033]
[1770822211407,20.04955359,80.19,80.158,13.30226446]
[1770822211611,49.85863308,80.227,80.158,13.30226446]
[1770822211612,20.04955359,80.18,80.158,0.8269033]
[1770822211790,20.04955359,80.18,80.158,13.30220343]
[1770822212197,20.04955359,80.19,80.159,0.8269033]
[1770822212400,20.04955359,80.21,80.171,0.8269033]
[1770822212600,12.4656191,80.221,80.158,12.47530013]
[1770822212601,20.04955359,80.18,80.158,12.47530013]
[1770822212807,20.04955359,80.2,80.16,20.04955359]
[1770822213105,20.04955359,80.19,80.161,0.8269033]
[1770822213316,20.04955359,80.21,80.173,0.8269033]
[1770822213709,20.04955359,80.2,80.173,0.8269033]
[1770822214016,20.04955359,80.21,80.172,12.47318265]
[1770822214393,20.04955359,80.19,80.166,12.4739874]
[1770822214592,20.04955359,80.19,80.154,0.8269033]
[1770822214809,20.04955359,80.2,80.161,0.8269033]
[1770822215410,20.04955359,80.19,80.161,0.8269033]
[1770822215717,20.04955359,80.2,80.163,0.8269033]
[1770822216015,20.04955359,80.22,80.181,0.8269033]
[1770822216405,20.04955359,80.23,80.191,0.8269033]
[1770822216712,49.82257128,80.285,80.201,0.8269033]
[1770822216713,20.04955359,80.24,80.201,0.8269033]
[1770822216923,49.82257128,80.285,80.21,20.04955359]
[1770822216924,20.04955359,80.25,80.21,20.04955359]
[1770822217413,20.04955359,80.22,80.191,0.8269033]
[1770822217590,20.04955359,80.22,80.192,12.47007182]
[1770822218217,20.04955359,80.22,80.191,0.8269033]
[1770822218515,20.04955359,80.21,80.175,12.47271593]
[1770822218807,20.04955359,80.21,80.175,13.29961923]
[1770822219013,49.82995527,80.273,80.191,0.8269033]
[1770822219194,12.8152399,80.23,80.19,13.6421432]
[1770822219394,12.8152399,80.23,80.191,0.8269033]
[1770822220090,12.8152399,80.22,80.192,12.47007182]
[1770822220293,0.71040425,80.199,80.117,49.926801]
[1770822220508,0.71040425,80.199,79.854,66.55907485]
[1770822220509,0.71040425,80.148,80.053,243.58862253]
[1770822220712,12.8152399,80.12,80.08,12.8152399]
[1770822221303,0.71040425,80.146,80.066,41.48]
[1770822221512,12.8152399,80.14,80.1,12.8152399]
[1770822221716,12.8152399,80.13,80.09,12.8152399]
[1770822222217,12.8152399,80.13,80.091,12.4857974]
[1770822222514,12.8152399,80.11,80.077,0.75687092]
[1770822222713,49.91387507,80.139,80.05,12.8152399]
[1770822222714,0.70719571,80.106,80.05,12.8152399]
[1770822223012,0.70561902,80.079,80.031,12.49507417]
[1770822223213,12.8152399,80.05,80.031,12.49507417]
[1770822223394,12.8152399,80.04,80.006,12.49906257]
[1770822223595,12.8152399,80.04,80.006,43.74671899]
[1770822223800,0.70561902,80.066,80.007,0.75687092]
[1770822224002,12.8152399,80.04,80.011,0.75687092]
[1770822224312,12.8152399,80.04,80.012,12.49812528]
[1770822224501,12.8152399,80.04,80.0,12.8152399]
[1770822224693,12.8152399,80.04,79.999,12.50015625]
[1770822224694,0.70406045,80.05,80.001,0.75687092]
[1770822224896,20.07382255,80.03,80.001,0.75687092]
[1770822225109,20.07382255,80.04,80.001,0.75687092]
[1770822225307,20.07382255,80.07,80.021,0.75687092]
[1770822225513,20.07382255,80.09,80.051,0.75687092]
[1770822225710,20.07382255,80.1,80.051,0.75687092]
[1770822225928,20.07382255,80.1,80.061,0.75687092]
[1770822226109,20.07382255,80.09,80.047,41.48]
[1770822226414,20.07382255,80.1,80.061,0.75687092]
[1770822226716,20.07382255,80.08,80.052,41.48]
[1770822226916,20.07382255,80.06,80.015,0.75687092]
[1770822227100,20.07382255,80.05,80.015,0.75687092]
[1770822227622,20.07382255,80.05,80.005,41.48]
[1770822227623,20.07382255,80.04,80.005,41.48]
[1770822227825,20.07382255,80.03,80.008,12.49860361]
[1770822228123,20.07382255,80.03,79.991,0.75687092]
[1770822228299,20.07382255,80.03,79.993,0.75687092]
[1770822228500,20.07382255,80.03,79.97,41.5]
[1770822228501,20.07382255,80.01,79.957,0.75687092]
[1770822228699,20.07382255,80.01,79.874,56.24]
[1770822228700,20.07382255,79.98,79.941,12.50922555]
[1770822228899,20.07382255,79.96,79.941,12.50922555]
[1770822230205,20.07382255,79.96,79.94,0.1]
[1770822230206,4.61729252,80.004,79.94,0.1]
[1770822230414,20.07382255,79.97,79.94,0.1]
[1770822231021,12.49890634,80.007,79.951,0.75569449]
[1770822231221,31.2423916,80.02,79.981,0.75569449]
[1770822231222,20.07382255,80.02,79.981,0.75569449]
[1770822231403,20.07382255,80.0,79.977,41.52]
[1770822231599,20.07382255,80.0,79.971,41.52]
[1770822231809,20.07382255,79.98,79.95,0.75569449]
[1770822232024,20.07382255,80.01,79.961,0.75569449]
[1770822232322,20.07382255,80.03,79.981,0.75569449]
[1770822232523,20.07382255,80.06,80.01,20.07382255]
[1770822232729,20.07382255,80.06,80.021,0.75569449]
[1770822232903,35.6,80.059,79.973,0.75569449]
[1770822233107,43.713936,80.066,80.01,20.07382255]
[1770822233310,20.07382255,80.06,80.011,0.75569449]
[1770822233804,20.07382255,80.05,80.011,0.75569449]
[1770822234004,20.07382255,80.02,79.992,0.75569449]
[1770822234206,20.07382255,80.01,79.978,12.50343844]
[1770822234424,12.49437753,80.036,79.977,0.75569449]
[1770822234609,20.07382255,80.0,79.961,13.26179121]
[1770822235008,4.61729252,80.028,79.961,13.26179121]
[1770822235207,143.68534159,80.036,79.903,50.06034815]
[1770822235208,20.07382255,79.97,79.924,31.27958726]
[1770822235407,20.07382255,79.95,79.929,12.51098153]
[1770822235617,20.07382255,79.95,79.92,0.1]
[1770822236023,20.07382255,79.93,79.92,0.1]
[1770822236420,20.07382255,79.93,79.9,12.51564455]
[1770822236631,20.07382255,79.91,79.86,20.07382255]
[1770822236932,20.07382255,79.9,79.861,0.75569449]
[1770822237334,20.07382255,79.9,79.855,43.82944085]
[1770822237335,20.07382255,79.88,79.855,12.52269738]
[1770822237515,20.07382255,79.89,79.855,12.52269738]
[1770822237715,20.07382255,79.88,79.855,12.52269738]
[1770822237910,20.07382255,79.88,79.847,0.75569449]
[1770822238131,20.07382255,79.87,79.838,12.52536386]
[1770822238334,20.07382255,79.87,79.811,50.1181736]
[1770822238335,43.80530418,79.899,79.821,0.75569449]
[1770822238516,20.07382255,79.87,79.831,0.75569449]
[1770822238832,20.07382255,79.86,79.824,0.75569449]
[1770822239013,93.85558752,79.91,79.831,0.75569449]
[1770822239014,20.07382255,79.88,79.831,0.75569449]
[1770822239610,20.07382255,79.87,79.831,0.75569449]
[1770822239805,35.6,79.902,79.831,0.75569449]
[1770822240018,20.07382255,79.88,79.84,20.07382255]
[1770822240224,20.07382255,79.88,79.841,0.75569449]
[1770822240432,43.79927417,79.91,79.815,0.75569449]
[1770822240433,20.07382255,79.86,79.815,0.75569449]
[1770822240618,20.07382255,79.86,79.775,50.14040975]
[1770822240619,20.07382255,79.83,79.814,12.52913022]
[1770822240822,28.92,79.872,79.815,0.75569449]
[1770822240823,20.07382255,79.85,79.815,0.75569449]
[1770822241121,20.07382255,79.82,79.801,12.53103159]
[1770822241335,20.07382255,79.82,79.785,0.75569449]
[1770822241336,20.07382255,79.82,79.79,31.33223637]
[1770822241643,20.07382255,79.82,79.774,41.54]
[1770822241644,20.07382255,79.82,79.813,1e-08]
[1770822241936,35.6,79.819,79.77,6.78326316]
[1770822242141,20.07382255,79.8,79.77,6.78326316]
[1770822242429,456.7638593,79.91,79.77,6.78326316]
[1770822242430,20.07382255,79.78,79.77,6.78326316]
[1770822242632,35.6,79.804,79.77,0.19036506]
[1770822242931,20.07382255,79.79,79.771,12.53588396]
[1770822243231,20.07382255,79.78,79.77,0.19036506]
[1770822243528,20.07382255,79.78,79.75,0.1]
[1770822243712,20.07382255,79.76,79.75,0.1]
[1770822243913,20.07382255,79.78,79.751,12.53902772]
[1770822244318,20.07382255,79.78,79.75,0.1]
[1770822244631,20.07382255,79.76,79.75,0.1]
[1770822244927,20.07382255,79.76,79.691,0.75569449]
[1770822245126,20.07382255,79.73,79.691,0.75569449]
[1770822245307,4.61729252,79.777,79.691,0.75569449]
[1770822245308,4.61729252,79.767,79.691,0.75569449]
[1770822245511,20.07382255,79.72,79.691,0.75569449]
[1770822245949,5.36086188,79.775,79.691,0.75569449]
[1770822246132,20.07382255,79.72,79.691,0.75569449]
[1770822246329,12.53651259,79.767,79.693,0.75569449]
[1770822246518,20.07382255,79.72,79.693,0.75569449]
[1770822246717,20.07382255,79.74,79.7,20.07382255]
[1770822246932,20.07382255,79.75,79.711,0.75569449]
[1770822247117,20.07382255,79.75,79.692,244.6920644]
[1770822247118,50.09848772,79.843,79.731,0.75569449]
[1770822247323,79.44646221,79.824,79.693,0.75569449]
[1770822247631,35.6,79.824,79.761,0.75569449]
[1770822247831,20.07382255,79.8,79.761,0.75569449]
[1770822248034,48.12756063,79.824,79.771,0.75569449]
[1770822248035,35.6,79.824,79.771,0.75569449]
[1770822248332,20.07382255,79.84,79.793,0.75569449]
[1770822248523,12.52020683,79.871,79.793,0.75569449]
[1770822248727,20.07382255,79.84,79.793,0.75569449]
[1770822248923,20.07382255,79.83,79.801,0.75569449]
[1770822249129,20.07382255,79.81,79.784,0.75569449]
[1770822249319,20.07382255,79.82,79.781,0.75569449]
[1770822249638,20.07382255,79.82,79.78,20.07382255]
[1770822249834,20.07382255,79.83,79.79,20.07382255]
[1770822250016,20.07382255,79.81,79.781,0.75569449]
[1770822250210,20.07382255,79.83,79.781,0.75569449]
[1770822250436,31.29968825,79.873,79.81,20.07382255]
[1770822250437,20.07382255,79.85,79.81,20.07382255]
[1770822250614,20.07382255,79.85,79.81,20.82951704]
[1770822250816,35.6,79.873,79.821,0.75569449]
[1770822251012,20.16310138,79.86,79.821,0.75569449]
[1770822251337,20.16310138,79.85,79.803,0.75569449]
[1770822251516,20.16310138,79.84,79.803,0.75569449]
[1770822252217,20.16310138,79.85,79.803,0.75569449]
[1770822252418,20.16310138,79.86,79.821,0.75569449]
[1770822252624,20.16310138,79.83,79.777,0.75569449]
[1770822252936,20.16310138,79.79,79.708,31.36437074]
[1770822253124,20.16310138,79.77,79.73,20.16310138]
[1770822253323,0.62301399,79.789,79.73,20.16310138]
[1770822253631,0.62301399,79.83,79.76,20.16310138]
[1770822253940,20.16310138,79.8,79.761,41.58]
[1770822254317,20.16310138,79.81,79.77,20.16310138]
[1770822254638,4.61729252,79.836,79.768,41.58]
[1770822254639,20.16310138,79.8,79.768,41.58]
[1770822255217,12.52834538,79.819,79.771,0.6742198]
[1770822255522,20.16310138,79.8,79.74,0.6742198]
[1770822255721,20.16310138,79.8,79.761,0.6742198]
[1770822255923,20.16310138,79.81,79.761,0.6742198]
[1770822256242,20.16310138,79.81,79.771,0.6742198]
[1770822256444,12.52991517,79.809,79.772,41.58]
[1770822256623,20.16310138,79.8,79.757,0.6742198]
[1770822256941,12.52877241,79.817,79.78,20.16310138]
[1770822257141,20.16310138,79.8,79.76,0.6742198]
[1770822257448,20.16310138,79.8,79.76,20.83732118]
[1770822257618,12.52877241,79.817,79.771,0.6742198]
[1770822257933,20.16310138,79.81,79.771,0.6742198]
[1770822258133,0.60175872,79.858,79.801,0.6742198]
[1770822258330,0.60175872,79.858,79.764,4.61729252]
[1770822258331,20.16310138,79.82,79.79,0.6742198]
[1770822258639,20.16310138,79.8,79.764,12.5369841]
[1770822258820,20.16310138,79.81,79.77,20.16310138]
[1770822259022,20.16310138,79.8,79.764,12.5369841]
[1770822259923,20.16310138,79.8,79.76,20.16310138]
[1770822260240,20.16310138,79.79,79.751,43.88659702]
[1770822260536,20.16310138,79.79,79.725,50.17235354]
[1770822260537,12.53777003,79.759,79.714,12.54484783]
[1770822260724,0.5856167,79.759,79.707,0.67174931]
[1770822260924,0.5856167,79.739,79.7,20.16310138]
[1770822261130,20.16310138,79.75,79.701,0.67174931]
[1770822261341,20.16310138,79.77,79.731,0.67174931]
[1770822261544,20.16310138,79.75,79.723,41.58]
[1770822261755,20.16310138,79.76,79.723,41.58]
[1770822261936,20.16310138,79.76,79.72,20.16310138]
[1770822262239,20.16310138,79.74,79.709,41.58]
[1770822262431,20.16310138,79.73,79.683,0.67174931]
[1770822262632,20.16310138,79.73,79.69,20.16310138]
[1770822262944,0.58169641,79.741,79.7,20.16310138]
[1770822263239,35.52,79.758,79.701,0.67174931]
[1770822263240,20.16310138,79.74,79.701,0.67174931]
[1770822263541,20.16310138,79.74,79.684,41.58]
[1770822263542,0.57782114,79.749,79.691,0.67174931]
[1770822263749,32.70228633,79.75,79.71,20.83485069]
[1770822264221,35.52,79.758,79.72,20.16310138]
[1770822264421,12.53478402,79.778,79.733,0.67174931]
[1770822264839,12.5347327,79.779,79.74,20.16310138]
[1770822265426,12.53362227,79.786,79.74,20.16310138]
[1770822265738,20.16310138,79.8,79.751,0.67174931]
[1770822265925,12.53148535,79.799,79.76,20.16310138]
[1770822266125,20.16310138,79.78,79.751,0.67174931]
[1770822266329,20.16310138,79.77,79.737,0.63647001]
[1770822266523,20.16310138,79.76,79.725,12.54311696]
[1770822266847,0.56276011,79.759,79.725,12.54311696]
[1770822267042,12.53619827,79.769,79.725,43.90090937]
[1770822267228,0.55910235,79.768,79.72,20.16310138]
[1770822267429,20.16310138,79.76,79.72,20.16310138]
[1770822267748,0.55910235,79.795,79.75,20.79957139]
[1770822267930,20.16310138,79.8,79.76,20.16310138]
[1770822268125,0.5554866,79.808,79.77,20.16310138]
[1770822268329,20.16310138,79.79,79.75,20.79957139]
[1770822268539,0.5554866,79.848,79.781,0.63647001]
[1770822268745,20.16310138,79.82,79.783,0.63647001]
[1770822268926,20.16310138,79.81,79.77,20.16310138]
[1770822269127,20.16310138,79.79,79.753,12.53871327]
[1770822269543,0.55191238,79.779,79.723,0.63647001]
[1770822269749,20.16310138,79.76,79.724,12.54327429]
[1770822269947,20.16310138,79.79,79.74,20.16310138]
[1770822270149,20.16310138,79.77,79.73,20.16310138]
[1770822270451,12.53934218,79.749,79.723,0.63647001]
[1770822270649,20.16310138,79.74,79.723,0.63647001]
[1770822270833,13.08772139,79.749,79.723,0.63647001]
[1770822271030,20.16310138,79.74,79.7,20.16310138]
[1770822271353,0.62861741,79.748,79.71,20.16310138]
[1770822271540,0.62861741,79.764,79.72,20.16310138]
[1770822271745,35.5,79.772,79.704,41.58]
[1770822271746,20.16310138,79.75,79.704,41.58]
[1770822271943,12.53714128,79.763,79.7,20.16310138]
[1770822271944,20.16310138,79.74,79.7,20.16310138]
[1770822272153,0.62861741,79.739,79.7,20.16310138]
[1770822272350,20.16310138,79.74,79.671,12.55161853]
[1770822272351,20.16310138,79.71,79.671,12.55161853]
[1770822272534,20.16310138,79.71,79.671,43.93066485]
[1770822273453,0.62861741,79.724,79.681,0.63647001]
[1770822273643,50.13716193,79.782,79.671,75.30971118]
[1770822273644,32.70079857,79.76,79.711,0.63647001]
[1770822273840,32.70079857,79.76,79.72,20.16310138]
[1770822274038,0.62861741,79.764,79.72,20.16310138]
[1770822274241,0.62861741,79.759,79.72,20.16310138]
[1770822274436,0.62861741,79.759,79.711,0.63647001]
[1770822274754,0.62861741,79.739,79.706,43.91136385]
[1770822274950,0.62861741,79.767,79.72,20.16310138]
[1770822275261,0.62861741,79.782,79.74,20.16310138]
[1770822275451,0.62861741,79.769,79.72,20.16310138]
[1770822275644,20.16310138,79.76,79.72,20.16310138]
[1770822275971,0.62861741,79.769,79.72,20.16310138]
[1770822276137,20.16310138,79.76,79.72,20.16310138]
[1770822276538,0.62861741,79.758,79.721,12.54374631]
[1770822276736,0.62861741,79.739,79.705,12.54626434]
[1770822276941,20.16310138,79.73,79.69,20.16310138]
[1770822277154,20.16310138,79.73,79.685,0.63647001]
[1770822277155,20.16310138,79.72,79.686,43.9220873]
[1770822277450,0.62861741,79.729,79.686,43.9220873]
[1770822277953,0.62861741,79.719,79.686,12.54925582]
[1770822278158,20.79171879,79.7,79.657,12.55382452]
[1770822278463,20.16310138,79.67,79.633,31.39388983]
[1770822278765,35.46,79.684,79.641,0.63647001]
[1770822279060,35.46,79.684,79.65,20.16310138]
[1770822279235,35.46,79.684,79.641,0.63647001]
[1770822279236,12.54972829,79.683,79.641,0.63647001]
[1770822279559,20.16310138,79.68,79.641,0.63647001]
[1770822279760,20.16310138,79.69,79.641,0.63647001]
[1770822279955,20.16310138,79.69,79.651,0.63647001]
[1770822280758,35.48,79.7,79.66,20.16310138]
[1770822280972,20.16310138,79.73,79.69,20.16310138]
[1770822281257,20.16310138,79.73,79.68,0.63647001]
[1770822281258,35.48,79.756,79.72,20.16310138]
[1770822281561,35.48,79.756,79.68,0.63647001]
[1770822281562,20.16310138,79.75,79.71,20.16310138]
[1770822281759,0.62861741,79.801,79.74,20.16310138]
[1770822282060,20.16310138,79.75,79.71,20.16310138]
[1770822282249,20.16310138,79.76,79.72,20.16310138]
[1770822282557,0.62861741,79.769,79.706,156.82633677]
[1770822282750,0.62861741,79.769,79.73,20.16310138]
[1770822283050,0.62861741,79.784,79.75,20.16310138]
[1770822283254,12.53195648,79.796,79.75,20.16310138]
[1770822283451,5.36086188,79.829,79.735,41.58]
[1770822283452,20.16310138,79.81,79.77,20.16310138]
[1770822283654,50.08956465,79.857,79.78,20.16310138]
[1770822283655,20.16310138,79.82,79.78,20.16310138]
[1770822283848,0.62861741,79.829,79.771,0.63647001]
[1770822284053,20.16310138,79.81,79.77,20.16310138]